[Event "GER-chT Youth Countries 2020"]
[Site "Berlin"]
[Date "2020.10.02"]
[Round "4"]
[White "Schubert, Nikita"]
[Black "Sreyas Payyappat"]
[Result "0-1"]
[ECO "E10"]
[WhiteElo "1946"]
[BlackElo "2144"]
[Annotator "ChessBase"]
[PlyCount "66"]
[EventDate "2020.09.30"]
[EventType "team-tourn"]
[EventRounds "7"]
[EventCountry "GER"]
[SourceTitle "playchess.com"]
[Source "ChessBase"]
[SourceQuality "1"]
[TimeControl "30/5400+30:0"]

1. d4 {[%emt 0:00:00]} Nf6 {[%emt 0:00:00]} 2. c4 {[%emt 0:00:00]} e6 {[%emt 0:00:00]} 3. Nf3 {[%emt 0:00:12]} d5 {[%emt 0:00:00]} 4. g3 {[%emt 0:00:49]} Bb4+ {[%emt 0:00:00]} 5. Bd2 {[%emt 0:01:33]} Be7 {[%emt 0:00:00]} 6. Bg2 {[%emt 0:00:34]} O-O {[%emt 0:00:00]} 7. O-O {[%emt 0:03:36]} c6 {[%emt 0:07:23]} 8. Bf4 {[%emt 0:00:30]} b6 {[%emt 0:01:02]} 9. Qc2 {[%emt 0:04:28]} Ba6 {[%emt 0:00:30]} 10. Nbd2 {[%emt 0:02:00]} Nbd7 {[%emt 0:01:24]} 11. Ne5 {[%emt 0:21:43]} Rc8 {[%emt 0:01:49]} 12. Qa4 {[%emt 0:00:30]} Nb8 {[%emt 0:12:59]} 13. Rac1 {[%emt 0:18:17]} Nh5 {[%emt 0:00:30]} 14. cxd5 {[%emt 0:00:12]} Nxf4 {[%emt 0:02:54]} 15. gxf4 {[%emt 0:08:39]} cxd5 16. Rxc8 {[%emt 0:00:45]} Qxc8 {[%emt 0:02:22]} 17. Re1 {[%emt 0:07:51]} Qc7 {[%emt 0:09:19]} 18. f5 {[%emt 0:03:03]} Bd6 {[%emt 0:05:11]} 19. fxe6 {[%emt 0:00:18]} Bxe5 {[%emt 0:03:03]} 20. dxe5 {[%emt 0:02:30]} fxe6 {[%emt 0:07:18]} 21. Nf3 {[%emt 0:06:40]} Qf7 {[%emt 0:07:47]} 22. Qa3 {[%emt 0:04:32]} d4 {[%emt 0:01:42]} 23. Qd6 {[%emt 0:01:07]} d3 {[%emt 0:02:05]} 24. exd3 {[%emt 0:00:26]} Bb7 {[%emt 0:00:58]} 25. Re3 {[%emt 0:00:30]} Bd5 {[%emt 0:04:30]} 26. Qb4 {[%emt 0:01:33]} Nc6 {[%emt 0:05:53]} 27. Qd2 {[%emt 0:03:45]} Qg6 {[%emt 0:01:19]} 28. Kh1 {[%emt 0:04:20]} Ne7 {[%emt 0:01:19]} 29. Ne1 {[%emt 0:00:55]} Nf5 30. Re2 {[%emt 0:00:01]} Bxg2+ {[%emt 0:01:47]} 31. Nxg2 {[%emt 1:31:35]} Qh5 {[%emt 1:30:01]} 32. Re1 Nd4 {[%emt 0:00:13]} 33. Nf4 {[%emt 0:02:18]} Qh6 0-1

[Event "GER-chT Youth Countries 2020"]
[Site "Berlin"]
[Date "2020.10.02"]
[Round "4"]
[White "Kempe, Caius Emilian"]
[Black "Bardorz, Jana"]
[Result "0-1"]
[ECO "D01"]
[WhiteElo "1910"]
[BlackElo "1960"]
[Annotator "ChessBase"]
[PlyCount "39"]
[EventDate "2020.09.30"]
[EventType "team-tourn"]
[EventRounds "7"]
[EventCountry "GER"]
[SourceTitle "playchess.com"]
[Source "ChessBase"]
[SourceQuality "1"]
[TimeControl "30/5400+30:0"]

1. d4 {[%emt 0:00:00]} Nf6 {[%emt 0:00:00]} 2. Nc3 {[%emt 0:00:00]} d5 {[%emt 0:00:00]} 3. Bg5 {[%emt 0:00:00]} Nbd7 {[%emt 0:04:52]} 4. Qd3 g6 {[%emt 0:08:30]} 5. e4 {[%emt 0:05:07]} dxe4 {[%emt 0:01:18]} 6. Nxe4 {[%emt 0:00:01]} Bg7 {[%emt 0:02:17]} 7. O-O-O {[%emt 0:01:26]} O-O {[%emt 0:01:54]} 8. Nf3 {[%emt 0:04:35]} c5 {[%emt 0:06:16]} 9. Bxf6 {[%emt 0:08:40]} Nxf6 {[%emt 0:07:22]} 10. Nxc5 {[%emt 0:08:27]} Bf5 {[%emt 0:02:10]} 11. Qd2 {[%emt 0:00:59]} b6 {[%emt 0:03:12]} 12. Nb3 {[%emt 0:01:22]} a5 {[%emt 0:02:05]} 13. a3 {[%emt 0:08:45]} a4 {[%emt 0:02:50]} 14. Na1 {[%emt 0:00:16]} Qd5 {[%emt 0:04:34]} 15. c4 {[%emt 0:04:52]} Rac8 {[%emt 0:03:06]} 16. Nc2 {[%emt 0:01:47]} Rxc4 {[%emt 0:03:58]} 17. Bxc4 {[%emt 0:01:22]} Qxc4 {[%emt 0:00:05]} 18. Kb1 {[%emt 0:25:16]} Ne4 {[%emt 0:07:15]} 19. Qe3 {[%emt 0:07:02]} Rc8 {[%emt 0:05:36]} 20. Rc1 {[%emt 0:02:25]} 0-1

[Event "GER-chT Youth Countries 2020"]
[Site "Berlin"]
[Date "2020.10.02"]
[Round "4"]
[White "Weidenhoefer, Max"]
[Black "Tiarks, Jann-Christian"]
[Result "0-1"]
[ECO "B90"]
[WhiteElo "1897"]
[BlackElo "2151"]
[Annotator "ChessBase"]
[PlyCount "57"]
[EventDate "2020.09.30"]
[EventType "team-tourn"]
[EventRounds "7"]
[EventCountry "GER"]
[SourceTitle "playchess.com"]
[Source "ChessBase"]
[SourceQuality "1"]
[TimeControl "30/5400+30:0"]

1. e4 {[%emt 0:00:00]} c5 {[%emt 0:00:00]} 2. Nf3 {[%emt 0:00:00]} d6 {[%emt 0:00:00]} 3. d4 {[%emt 0:00:00]} cxd4 {[%emt 0:00:00]} 4. Nxd4 {[%emt 0:00:00]} Nf6 {[%emt 0:00:01]} 5. Nc3 {[%emt 0:00:00]} a6 {[%emt 0:00:05]} 6. Be3 {[%emt 0:00:00]} e5 {[%emt 0:00:05]} 7. Nb3 {[%emt 0:00:05]} Be6 {[%emt 0:00:06]} 8. Qd2 {[%emt 0:00:09]} Be7 {[%emt 0:00:48]} 9. f3 {[%emt 0:00:08]} h5 {[%emt 0:00:07]} 10. O-O-O {[%emt 0:03:06]} Nbd7 {[%emt 0:00:16]} 11. Kb1 {[%emt 0:12:16]} b5 {[%emt 0:00:26]} 12. Rg1 {[%emt 0:05:58]} Rc8 {[%emt 0:04:44]} 13. h3 {[%emt 0:11:16]} Nb6 {[%emt 0:03:33]} 14. g4 {[%emt 0:00:54]} hxg4 {[%emt 0:16:40]} 15. hxg4 {[%emt 0:01:18]} b4 {[%emt 0:01:53]} 16. Bxb6 {[%emt 0:08:18]} Qxb6 {[%emt 0:00:49]} 17. Nd5 {[%emt 0:05:22]} Bxd5 {[%emt 0:06:59]} 18. exd5 {[%emt 0:00:11]} a5 {[%emt 0:02:18]} 19. g5 {[%emt 0:07:48]} Nd7 {[%emt 0:00:12]} 20. Bd3 {[%emt 0:02:21]} a4 {[%emt 0:04:35]} 21. Nc1 {[%emt 0:02:13]} g6 {[%emt 0:00:11]} 22. Rh1 {[%emt 0:05:48]} Rxh1 {[%emt 0:04:02]} 23. Rxh1 {[%emt 0:00:01]} a3 {[%emt 0:00:12]} 24. bxa3 {[%emt 0:05:58]} bxa3+ {[%emt 0:00:50]} 25. Nb3 {[%emt 0:00:09]} Nc5 {[%emt 0:02:38]} 26. Rh8+ {[%emt 0:05:04]} Kd7 {[%emt 0:02:47]} 27. Rxc8 {[%emt 0:00:30]} Kxc8 {[%emt 0:00:05]} 28. Bc4 {[%emt 0:08:36]} Na4 {[%emt 0:04:47]} 29. Qa5 {[%emt 0:13:48]} 0-1

[Event "GER-chT Youth Countries 2020"]
[Site "Berlin"]
[Date "2020.10.02"]
[Round "4"]
[White "Reitz, Theresa"]
[Black "Dietz, Kristin"]
[Result "0-1"]
[ECO "B40"]
[WhiteElo "1886"]
[BlackElo "1913"]
[Annotator "ChessBase"]
[PlyCount "84"]
[EventDate "2020.09.30"]
[EventType "team-tourn"]
[EventRounds "7"]
[EventCountry "GER"]
[SourceTitle "playchess.com"]
[Source "ChessBase"]
[SourceQuality "1"]
[TimeControl "30/5400+30:0"]

1. e4 c5 2. Nf3 {[%emt 0:00:00]} e6 {[%emt 0:00:00]} 3. g3 {[%emt 0:00:00]} Nc6 {[%emt 0:00:42]} 4. Bg2 {[%emt 0:00:51]} d6 {[%emt 0:07:29]} 5. O-O g6 6. d4 {[%emt 0:07:29]} cxd4 {[%emt 0:01:03]} 7. Nxd4 {[%emt 0:01:22]} Bg7 {[%emt 0:07:28]} 8. Nb5 {[%emt 0:07:43]} Bf8 9. Bf4 {[%emt 0:00:31]} e5 {[%emt 0:02:02]} 10. Be3 {[%emt 0:09:46]} Be6 {[%emt 0:03:57]} 11. Qe2 {[%emt 0:02:08]} a6 {[%emt 0:14:05]} 12. N5c3 {[%emt 0:04:07]} Bg7 {[%emt 0:00:27]} 13. Rd1 {[%emt 0:11:04]} Qc7 {[%emt 0:01:02]} 14. Nd5 Bxd5 {[%emt 0:00:25]} 15. Rxd5 {[%emt 0:01:07]} Nge7 {[%emt 0:05:48]} 16. Rd2 {[%emt 0:11:48]} O-O {[%emt 0:10:35]} 17. Qd1 {[%emt 0:03:15]} Rac8 {[%emt 0:00:33]} 18. c3 {[%emt 0:02:28]} Rfd8 {[%emt 0:21:31]} 19. a4 Rb8 {[%emt 0:01:07]} 20. Na3 {[%emt 0:05:51]} Nc8 {[%emt 0:04:00]} 21. Bh3 Na5 {[%emt 0:03:09]} 22. Bg5 {[%emt 0:08:58]} f6 23. Be3 {[%emt 0:03:20]} Kh8 {[%emt 0:02:25]} 24. Be6 {[%emt 0:02:34]} Bf8 {[%emt 0:00:18]} 25. b4 {[%emt 0:01:54]} Nc6 {[%emt 0:02:59]} 26. Ba2 b5 {[%emt 0:00:06]} 27. axb5 {[%emt 0:03:57]} axb5 {[%emt 0:02:17]} 28. Qb3 {[%emt 0:05:49]} N6e7 {[%emt 0:01:28]} 29. Rad1 {[%emt 0:01:29]} Qc6 {[%emt 0:00:56]} 30. f3 {[%emt 0:02:22]} Bg7 {[%emt 0:01:12]} 31. Rc1 {[%emt 1:31:12]} Nb6 {[%emt 1:30:46]} 32. c4 {[%emt 0:00:21]} bxc4 {[%emt 0:00:28]} 33. Nxc4 {[%emt 0:00:14]} Nxc4 {[%emt 0:00:29]} 34. Rxc4 {[%emt 0:01:57]} Qb7 {[%emt 0:02:42]} 35. Qd1 {[%emt 0:00:53]} d5 {[%emt 0:00:10]} 36. exd5 {[%emt 0:01:29]} Rxd5 37. Bc5 {[%emt 0:00:01]} Rxd2 {[%emt 0:01:50]} 38. Qxd2 {[%emt 0:01:13]} Nc6 {[%emt 0:04:08]} 39. Qc2 {[%emt 0:00:30]} Rd8 {[%emt 0:00:22]} 40. Kg2 {[%emt 0:00:00]} Bh6 {[%emt 0:00:00]} 41. Qb3 {[%emt 0:00:00]} Rd2+ {[%emt 0:00:00]} 42. Bf2 Qa7 0-1

[Event "GER-chT Youth Countries 2020"]
[Site "Berlin"]
[Date "2020.10.02"]
[Round "4"]
[White "Simon, Tessa"]
[Black "Costa, Leonardo"]
[Result "0-1"]
[ECO "C54"]
[WhiteElo "1860"]
[BlackElo "2245"]
[Annotator "ChessBase"]
[PlyCount "89"]
[EventDate "2020.09.30"]
[EventType "team-tourn"]
[EventRounds "7"]
[EventCountry "GER"]
[SourceTitle "playchess.com"]
[Source "ChessBase"]
[SourceQuality "1"]
[TimeControl "30/5400+30:0"]

1. e4 {[%emt 0:00:00]} e5 {[%emt 0:00:00]} 2. Nf3 {[%emt 0:00:00]} Nc6 {[%emt 0:00:00]} 3. Bc4 {[%emt 0:00:00]} Bc5 {[%emt 0:00:00]} 4. c3 {[%emt 0:00:00]} Nf6 {[%emt 0:00:01]} 5. d4 {[%emt 0:00:08]} exd4 {[%emt 0:00:11]} 6. cxd4 {[%emt 0:00:10]} Bb4+ {[%emt 0:00:05]} 7. Bd2 {[%emt 0:00:13]} Bxd2+ {[%emt 0:02:42]} 8. Nbxd2 {[%emt 0:00:33]} d5 {[%emt 0:00:11]} 9. exd5 {[%emt 0:00:49]} Nxd5 {[%emt 0:02:25]} 10. Qb3 {[%emt 0:00:10]} Na5 {[%emt 0:03:01]} 11. Qa4+ {[%emt 0:00:13]} Nc6 {[%emt 0:16:33]} 12. Qb3 {[%emt 0:00:24]} Nce7 {[%emt 0:00:16]} 13. O-O {[%emt 0:00:41]} O-O {[%emt 0:00:29]} 14. Rfe1 {[%emt 0:01:01]} Rb8 {[%emt 0:04:24]} 15. Ne4 {[%emt 0:10:07]} Bf5 {[%emt 0:10:32]} 16. Nc5 {[%emt 0:23:29]} c6 {[%emt 0:06:51]} 17. Rac1 {[%emt 0:11:44]} Nb6 {[%emt 0:12:51]} 18. Bd3 {[%emt 0:06:15]} Bxd3 {[%emt 0:00:19]} 19. Qxd3 {[%emt 0:00:21]} Ng6 {[%emt 0:06:13]} 20. Ne5 {[%emt 0:02:44]} Qd6 {[%emt 0:03:38]} 21. Nxg6 {[%emt 0:04:16]} hxg6 {[%emt 0:00:21]} 22. Re4 {[%emt 0:02:32]} Nd7 {[%emt 0:03:22]} 23. Qh3 {[%emt 0:04:47]} Nxc5 {[%emt 0:00:20]} 24. Rh4 {[%emt 0:02:34]} f6 {[%emt 0:00:31]} 25. dxc5 {[%emt 0:01:52]} Qd5 {[%emt 0:00:09]} 26. Rh8+ {[%emt 0:09:37]} Kf7 {[%emt 0:00:05]} 27. Rxf8+ {[%emt 0:04:19]} Rxf8 {[%emt 0:00:17]} 28. Qg4 {[%emt 0:01:02]} Re8 {[%emt 0:10:14]} 29. a3 {[%emt 0:04:28]} Qxc5 {[%emt 0:01:26]} 30. Rd1 {[%emt 0:02:24]} Re7 {[%emt 0:06:33]} 31. g3 {[%emt 1:31:35]} Qe5 {[%emt 1:34:24]} 32. Qc4+ {[%emt 0:02:57]} Qe6 {[%emt 0:00:07]} 33. Qb4 {[%emt 0:02:55]} b6 {[%emt 0:04:57]} 34. Qc3 {[%emt 0:01:26]} c5 {[%emt 0:00:48]} 35. Qd3 {[%emt 0:00:37]} Qe4 {[%emt 0:00:59]} 36. Qd8 {[%emt 0:00:36]} Qc6 {[%emt 0:00:47]} 37. Qd3 {[%emt 0:00:34]} c4 {[%emt 0:00:23]} 38. Qd4 {[%emt 0:00:09]} a6 {[%emt 0:00:17]} 39. Rc1 {[%emt 0:01:00]} b5 {[%emt 0:00:17]} 40. b3 {[%emt 0:00:44]} Re4 {[%emt 0:00:37]} 41. Qa7+ {[%emt 0:00:00]} Kg8 {[%emt 0:00:00]} 42. bxc4 {[%emt 0:00:00]} bxc4 {[%emt 0:00:00]} 43. Qb8+ {[%emt 0:00:00]} Kh7 {[%emt 0:00:00]} 44. Qb4 {[%emt 0:00:00]} Qd5 {[%emt 0:00:00]} 45. Qa4 {[%emt 0:00:00]} 0-1

[Event "GER-chT Youth Countries 2020"]
[Site "Berlin"]
[Date "2020.10.02"]
[Round "4"]
[White "Brunner, Sophia"]
[Black "Goepfert, Christian"]
[Result "1/2-1/2"]
[ECO "D12"]
[WhiteElo "1850"]
[BlackElo "1603"]
[Annotator "NA"]
[PlyCount "70"]
[EventDate "2020.09.30"]
[EventType "team-tourn"]
[EventRounds "7"]
[EventCountry "GER"]
[SourceTitle "playchess.com"]
[Source "ChessBase"]
[SourceQuality "1"]
[TimeControl "30/5400+30:0"]

1. d4 {[%emt 0:00:00]} d5 {[%emt 0:00:00]} 2. Nf3 {[%emt 0:00:00]} Nf6 {[%emt 0:00:00]} 3. e3 {[%emt 0:02:37]} Bf5 {[%emt 0:01:25]} 4. c4 {[%emt 0:00:28]} c6 {[%emt 0:01:07]} 5. Nc3 {[%emt 0:00:39]} e6 {[%emt 0:00:14]} 6. Bd3 {[%emt 0:06:21]} Bg6 {[%emt 0:03:10]} 7. Ne5 {[%emt 0:12:45]} Bd6 {[%emt 0:03:40]} 8. Nxg6 {[%emt 0:09:40]} hxg6 {[%emt 0:00:09]} 9. f4 {[%emt 0:00:07]} Nbd7 {[%emt 0:05:51]} 10. c5 {[%emt 0:03:51]} Be7 {[%emt 0:01:31]} 11. b4 {[%emt 0:06:27]} b6 {[%emt 0:13:46]} 12. a3 {[%emt 0:07:30]} Qc7 {[%emt 0:04:38]} 13. Qf3 {[%emt 0:06:43]} a5 {[%emt 0:01:14]} 14. Bb2 {[%emt 0:07:57]} axb4 {[%emt 0:00:43]} 15. axb4 {[%emt 0:00:06]} Rxa1+ {[%emt 0:08:42]} 16. Bxa1 {[%emt 0:00:02]} O-O {[%emt 0:03:13]} 17. O-O {[%emt 0:03:52]} bxc5 {[%emt 0:01:12]} 18. bxc5 {[%emt 0:00:09]} Rb8 {[%emt 0:01:37]} 19. g4 {[%emt 0:11:27]} Rb4 {[%emt 0:05:26]} 20. g5 {[%emt 0:01:54]} Nh5 {[%emt 0:00:34]} 21. Qd1 {[%emt 0:01:20]} Nxc5 {[%emt 0:09:38]} 22. dxc5 {[%emt 0:01:28]} Bxc5 {[%emt 0:00:08]} 23. Qd2 {[%emt 0:09:44]} Rxf4 {[%emt 0:01:46]} 24. Rxf4 {[%emt 0:03:06]} Qxf4 {[%emt 0:00:12]} 25. Nd1 {[%emt 0:00:17]} Qxg5+ {[%emt 0:00:38]} 26. Kh1 {[%emt 0:00:30]} d4 {[%emt 0:05:16]} 27. Qg2 {[%emt 0:01:09]} Qxg2+ {[%emt 0:02:04]} 28. Kxg2 {[%emt 0:00:01]} e5 {[%emt 0:01:43]} 29. exd4 {[%emt 0:02:13]} Bxd4 {[%emt 0:03:33]} 30. Bxd4 {[%emt 0:00:08]} exd4 {[%emt 0:00:15]} 31. Kf3 {[%emt 1:30:32]} f5 {[%emt 1:30:22]} 32. Bc4+ {[%emt 0:00:44]} Kf8 {[%emt 0:00:41]} 33. Nb2 {[%emt 0:00:48]} Ke7 {[%emt 0:01:01]} 34. Nd3 {[%emt 0:00:22]} Kf6 {[%emt 0:00:54]} 35. Nb4 {[%emt 0:01:28]} g5 1/2-1/2

[Event "GER-chT Youth Countries 2020"]
[Site "Berlin"]
[Date "2020.10.02"]
[Round "4"]
[White "Fock, Amina"]
[Black "Bakiev, Diyor"]
[Result "0-1"]
[ECO "B19"]
[WhiteElo "1840"]
[BlackElo "2070"]
[Annotator "ChessBase"]
[PlyCount "80"]
[EventDate "2020.09.30"]
[EventType "team-tourn"]
[EventRounds "7"]
[EventCountry "GER"]
[SourceTitle "playchess.com"]
[Source "ChessBase"]
[SourceQuality "1"]
[TimeControl "30/5400+30:0"]

1. e4 {[%emt 0:00:00]} c6 {[%emt 0:00:00]} 2. d4 {[%emt 0:00:00]} d5 {[%emt 0:00:00]} 3. Nd2 {[%emt 0:00:00]} dxe4 {[%emt 0:00:01]} 4. Nxe4 {[%emt 0:00:00]} Bf5 {[%emt 0:00:07]} 5. Ng3 {[%emt 0:00:04]} Bg6 {[%emt 0:00:04]} 6. h4 {[%emt 0:00:08]} h6 {[%emt 0:00:07]} 7. Nf3 {[%emt 0:00:05]} Nd7 {[%emt 0:00:09]} 8. h5 {[%emt 0:00:10]} Bh7 {[%emt 0:00:05]} 9. Bd3 {[%emt 0:00:09]} Bxd3 {[%emt 0:00:05]} 10. Qxd3 {[%emt 0:00:07]} e6 {[%emt 0:00:06]} 11. Bf4 {[%emt 0:00:13]} Qa5+ {[%emt 0:00:34]} 12. Bd2 {[%emt 0:00:09]} Bb4 {[%emt 0:00:11]} 13. c3 {[%emt 0:00:13]} Be7 {[%emt 0:00:21]} 14. c4 {[%emt 0:01:21]} Qc7 {[%emt 0:00:08]} 15. O-O-O {[%emt 0:03:45]} Ngf6 {[%emt 0:01:28]} 16. Kb1 {[%emt 0:04:18]} O-O {[%emt 0:01:09]} 17. Ne4 {[%emt 0:08:22]} Nxe4 {[%emt 0:01:26]} 18. Qxe4 {[%emt 0:00:06]} Nf6 {[%emt 0:00:52]} 19. Qe2 {[%emt 0:00:39]} b5 {[%emt 0:05:52]} 20. g4 {[%emt 0:08:22]} Nh7 {[%emt 0:08:57]} 21. Ne5 {[%emt 0:11:16]} bxc4 {[%emt 0:04:23]} 22. f4 {[%emt 0:06:12]} Rab8 {[%emt 0:13:50]} 23. Qxc4 {[%emt 0:11:45]} c5 {[%emt 0:05:01]} 24. dxc5 {[%emt 0:02:06]} Bxc5 {[%emt 0:05:49]} 25. Bc3 {[%emt 0:09:01]} Rfd8 {[%emt 0:10:09]} 26. Rxd8+ {[%emt 0:12:12]} Rxd8 {[%emt 0:00:11]} 27. Qe2 {[%emt 0:03:22]} Nf6 {[%emt 0:05:46]} 28. Rc1 {[%emt 0:04:57]} Qb7 {[%emt 0:11:33]} 29. Ba5 {[%emt 0:08:41]} Bb6 {[%emt 0:02:51]} 30. Bxb6 {[%emt 0:00:18]} axb6 {[%emt 0:02:39]} 31. Qc4 {[%emt 1:34:21]} Ne4 {[%emt 1:38:51]} 32. Qc6 {[%emt 0:01:53]} Nd2+ {[%emt 0:01:06]} 33. Ka1 {[%emt 0:00:19]} Qa6 {[%emt 0:01:19]} 34. Qc3 {[%emt 0:00:24]} Qa4 {[%emt 0:02:48]} 35. Nd3 {[%emt 0:01:13]} Ra8 {[%emt 0:01:42]} 36. Nb4 {[%emt 0:00:39]} Nb3+ {[%emt 0:00:48]} 37. Kb1 {[%emt 0:00:02]} Nxc1 {[%emt 0:00:11]} 38. Kxc1 {[%emt 0:00:08]} Rd8 {[%emt 0:00:56]} 39. b3 {[%emt 0:01:00]} Qd7 {[%emt 0:00:22]} 40. Kb2 {[%emt 0:01:00]} Qd4 {[%emt 0:01:23]} 0-1

[Event "GER-chT Youth Countries 2020"]
[Site "Berlin"]
[Date "2020.10.02"]
[Round "4"]
[White "Besou, Hussain"]
[Black "Avetyan, Manan"]
[Result "1-0"]
[ECO "C60"]
[WhiteElo "1825"]
[BlackElo "1356"]
[Annotator "NA"]
[PlyCount "49"]
[EventDate "2020.09.30"]
[EventType "team-tourn"]
[EventRounds "7"]
[EventCountry "GER"]
[SourceTitle "playchess.com"]
[Source "ChessBase"]
[SourceQuality "1"]
[TimeControl "30/5400+30:0"]

1. e4 {[%emt 0:00:00]} e5 {[%emt 0:00:00]} 2. Nf3 {[%emt 0:00:00]} Nc6 {[%emt 0:00:00]} 3. Bb5 {[%emt 0:00:00]} Nge7 {[%emt 0:00:12]} 4. c3 {[%emt 0:00:01]} d6 {[%emt 0:12:13]} 5. d4 {[%emt 0:00:58]} a6 {[%emt 0:01:43]} 6. Ba4 {[%emt 0:00:19]} b5 {[%emt 0:01:00]} 7. Bb3 {[%emt 0:00:36]} g6 {[%emt 0:01:41]} 8. Ng5 {[%emt 0:01:32]} d5 {[%emt 0:13:20]} 9. exd5 {[%emt 0:00:40]} Nxd5 {[%emt 0:02:05]} 10. Qf3 {[%emt 0:00:13]} Be6 {[%emt 0:02:09]} 11. Nxe6 {[%emt 0:00:11]} fxe6 {[%emt 0:00:09]} 12. O-O {[%emt 0:00:32]} Bg7 {[%emt 0:10:48]} 13. a4 {[%emt 0:01:16]} Rf8 {[%emt 0:29:34]} 14. Qh3 {[%emt 0:00:32]} Qf6 {[%emt 0:05:29]} 15. axb5 {[%emt 0:00:17]} Nb8 {[%emt 0:02:20]} 16. bxa6 {[%emt 0:00:50]} Rxa6 {[%emt 0:03:53]} 17. Rxa6 {[%emt 0:00:20]} Nxa6 {[%emt 0:00:06]} 18. Qd3 {[%emt 0:00:52]} Nb8 {[%emt 0:01:54]} 19. Qb5+ {[%emt 0:01:27]} Nd7 {[%emt 0:05:41]} 20. Bxd5 {[%emt 0:00:28]} exd5 {[%emt 0:00:02]} 21. Qxd5 {[%emt 0:00:09]} Ke7 {[%emt 0:01:50]} 22. f4 {[%emt 0:00:30]} c6 {[%emt 0:02:13]} 23. Qe4 {[%emt 0:00:13]} Kd8 {[%emt 0:01:44]} 24. dxe5 {[%emt 0:02:14]} Qe6 {[%emt 0:00:14]} 25. Nd2 {[%emt 0:00:28]} 1-0

[Event "GER-chT Youth Countries 2020"]
[Site "Berlin"]
[Date "2020.10.02"]
[Round "4"]
[White "Wagner, Margarethe"]
[Black "Moenster, Madita"]
[Result "1/2-1/2"]
[ECO "B93"]
[WhiteElo "1804"]
[BlackElo "1918"]
[Annotator "ChessBase"]
[PlyCount "87"]
[EventDate "2020.09.30"]
[EventType "team-tourn"]
[EventRounds "7"]
[EventCountry "GER"]
[SourceTitle "playchess.com"]
[Source "ChessBase"]
[SourceQuality "1"]
[TimeControl "30/5400+30:0"]

1. e4 {[%emt 0:00:00]} c5 {[%emt 0:00:00]} 2. Nf3 {[%emt 0:00:00]} d6 {[%emt 0:00:00]} 3. d4 {[%emt 0:00:00]} cxd4 4. Nxd4 {[%emt 0:00:00]} Nf6 {[%emt 0:00:00]} 5. Nc3 {[%emt 0:00:00]} a6 {[%emt 0:05:14]} 6. f4 {[%emt 0:00:10]} e5 {[%emt 0:01:51]} 7. Nf3 {[%emt 0:00:25]} Nbd7 {[%emt 0:02:02]} 8. a4 {[%emt 0:01:14]} Be7 9. Bc4 {[%emt 0:00:07]} O-O {[%emt 0:01:42]} 10. O-O {[%emt 0:03:50]} Qc7 {[%emt 0:06:51]} 11. Ba2 {[%emt 0:03:23]} Nc5 {[%emt 0:03:14]} 12. Nd5 {[%emt 0:00:08]} Nxd5 {[%emt 0:07:28]} 13. Bxd5 {[%emt 0:05:11]} Bd7 {[%emt 0:03:20]} 14. a5 {[%emt 0:13:08]} Rac8 {[%emt 0:15:45]} 15. c3 {[%emt 0:01:44]} Bc6 {[%emt 0:04:53]} 16. Re1 {[%emt 0:08:21]} Nd7 {[%emt 0:06:36]} 17. Be3 {[%emt 0:03:48]} Bf6 {[%emt 0:02:05]} 18. f5 {[%emt 0:00:44]} Bxd5 {[%emt 0:01:03]} 19. Qxd5 {[%emt 0:05:52]} Be7 {[%emt 0:01:00]} 20. h3 {[%emt 0:00:45]} Nf6 {[%emt 0:01:42]} 21. Qd3 {[%emt 0:07:35]} h6 {[%emt 0:01:19]} 22. Bb6 {[%emt 0:02:19]} Qc6 {[%emt 0:03:17]} 23. Rad1 {[%emt 0:05:55]} Nh5 {[%emt 0:04:17]} 24. Kh2 Qc4 {[%emt 0:00:06]} 25. Qxc4 {[%emt 0:11:02]} Rxc4 {[%emt 0:00:51]} 26. Nd2 {[%emt 0:01:32]} Rcc8 {[%emt 0:02:43]} 27. Nf1 {[%emt 0:03:15]} Nf6 {[%emt 0:01:30]} 28. Ne3 {[%emt 0:01:01]} Rc6 {[%emt 0:05:12]} 29. Nd5 {[%emt 0:00:09]} Nxd5 {[%emt 0:03:16]} 30. Rxd5 {[%emt 0:03:57]} g6 {[%emt 0:05:38]} 31. Kg3 {[%emt 1:30:09]} gxf5 {[%emt 1:30:43]} 32. exf5 {[%emt 0:03:09]} Rc4 {[%emt 0:03:38]} 33. Kh2 {[%emt 0:05:08]} Rf4 {[%emt 0:01:09]} 34. g4 {[%emt 0:01:57]} Kg7 {[%emt 0:00:42]} 35. Re2 {[%emt 0:01:27]} Rc8 {[%emt 0:01:28]} 36. Be3 {[%emt 0:02:48]} Rfc4 {[%emt 0:05:46]} 37. Rf2 {[%emt 0:02:40]} f6 {[%emt 0:00:37]} 38. Kg3 {[%emt 0:02:50]} R8c6 {[%emt 0:00:52]} 39. Bb6 {[%emt 0:01:54]} Re4 {[%emt 0:00:53]} 40. Kf3 {[%emt 0:01:11]} Re1 {[%emt 0:00:00]} 41. Re2 {[%emt 0:00:00]} Rb1 {[%emt 0:00:00]} 42. Rdd2 {[%emt 0:00:00]} Rc4 {[%emt 0:00:00]} 43. Re4 {[%emt 0:00:00]} Rc6 44. Ree2 1/2-1/2

[Event "GER-chT Youth Countries 2020"]
[Site "Berlin"]
[Date "2020.10.02"]
[Round "4"]
[White "Mundt, Alexandra"]
[Black "Schulz, Hannah"]
[Result "1-0"]
[ECO "B34"]
[WhiteElo "1786"]
[BlackElo "1589"]
[Annotator "NA"]
[PlyCount "37"]
[EventDate "2020.09.30"]
[EventType "team-tourn"]
[EventRounds "7"]
[EventCountry "GER"]
[SourceTitle "playchess.com"]
[Source "ChessBase"]
[SourceQuality "1"]
[TimeControl "30/5400+30:0"]

1. e4 {[%emt 0:00:00]} c5 {[%emt 0:00:00]} 2. Nf3 {[%emt 0:00:00]} Nc6 {[%emt 0:00:00]} 3. d4 {[%emt 0:00:00]} cxd4 {[%emt 0:00:00]} 4. Nxd4 {[%emt 0:00:00]} g6 {[%emt 0:00:10]} 5. Nc3 {[%emt 0:00:38]} Bg7 {[%emt 0:00:07]} 6. Nb3 {[%emt 0:00:21]} Nf6 {[%emt 0:00:28]} 7. Be2 {[%emt 0:00:30]} O-O {[%emt 0:00:20]} 8. Be3 {[%emt 0:01:18]} d6 {[%emt 0:03:50]} 9. Qd2 {[%emt 0:09:49]} Ng4 {[%emt 0:02:28]} 10. Bxg4 {[%emt 0:00:58]} Bxg4 {[%emt 0:03:15]} 11. f3 {[%emt 0:00:09]} Bd7 {[%emt 0:01:56]} 12. Bh6 {[%emt 0:03:14]} a5 {[%emt 0:06:07]} 13. h4 {[%emt 0:08:12]} a4 {[%emt 0:01:39]} 14. Bxg7 {[%emt 0:09:30]} Kxg7 {[%emt 0:00:23]} 15. h5 {[%emt 0:01:22]} Rh8 {[%emt 0:01:58]} 16. Nd4 {[%emt 0:02:16]} e5 {[%emt 0:04:44]} 17. Nxc6 {[%emt 0:03:24]} Bxc6 {[%emt 0:00:28]} 18. O-O-O {[%emt 0:04:23]} a3 {[%emt 0:02:05]} 19. b3 {[%emt 0:10:24]} 1-0